Workbook

Sheet Sheet1
A1: ACTUAL EXPENSES FOR 2026
C2: JAN | D2: FEB | E2: MAR | F2: APRIL | G2: MAY | H2: JUNE | I2: JULY | J2: AUG | K2: SEPT | L2: OCT | M2: NOV | N2: DEC | O2: TOTAL
A3: OFFICE SUPPLIES | B3: OFFICE EXPENSE | E3: 85 | F3: 2140 | G3: 144 | O3: =SUM(C3:N3) -> 2369
A4: UTILITIES | B4: UTILITIES | D4: 6000 | E4: 8000 | F4: 6000 | G4: 5000 | O4: 25000
A5: OFFICE EQUIP. & SUPPLIES | B5: OFFICE EXPENSE | D5: 894 | F5: 918 | G5: 938 | O5: 2750
A6: OFFICE MAINT. & IMPROVE. | B6: MATERIALS | D6: 1856 | E6: 930 | F6: 548 | G6: 210 | O6: 3544
A7: OFFICE MAINT. & IMPROVE. | B7: SIMI-PROFESSIONAL SERVICES | E7: 215 | O7: 215
A8: AC MAINTENANCE | B8: ART HVAC | E8: 120 | O8: =SUM(C8:N8) -> 120
B9: UNITED RENTAL LIFT
B10: ALWAYS PLUMBING | C10: 1898 | O10: 1898
A11: LANDSCAPER | B11: JUAN M. AVELAR | C11: 1800 | F11: 1800 | O11: 3600
A12: CLEANING | B12: MAIDPRO | C12: 2000 | D12: 2000 | E12: 2000 | F12: 2000 | G12: 2000 | O12: 10000
A13: CARPET CLEANING | B13: DR. CARPET | F13: 1600 | O13: 1600
A14: REPAIR & MAINT. | B14: NORMA RAMIREZ | O14: 0
A15: CARPET CLEANING | B15: CALIF. CARPET | O15: 0
A16: R&S OVERHEAD DOOR | B16: TRUCK DOOR | O16: 0
B17: GARY | D17: 1750 | F17: 300
A18: GENERAL | B18: LABORERS | D18: 400 | F18: 450 | G18: 300 | O18: 1150
B19: PROFESSIONAL SERVICES | O19: 0
A20: BUILDING INSURANCE | B20: WESTERN UNITED | O20: 0
A21: BUILDING INSURANCE | B21: THE HARTFORD | D21: 13005 | O21: 13005
A22: ACCOUNTANT | B22: ADAM RIZVI CPA | D22: 3795 | O22: 3795
A23: lawyer - real estate | B23: DARREN G. SMITH | O23: 0
A24: ATTORNEY | B24: LONG & DELIS | O24: 0
A25: lawler - labor | B25: BERGER HARRISON | O25: 0
A26: LAWYER | B26: EDWARD INOUYE | O26: 0
A27: TAXES | B27: PAID TO | O27: 0
A28: FORM 3522 | B28: STATE FRANCHISE TAX | D28: 800 | O28: 800
A29: FORM 3536 LLC | B29: STATE FRANCHISE TAX | D29: 2500 | O29: 2500
A30: 2018 PAYMENT LLC | B30: STATE FRANCHISE TAX | O30: 0
A31: PROPERTY TAXES | B31: OR CO TAX COLLECTOR | O31: 0
A32: PERSONAL PROPERTY TAX | B32: OR CO TAX COLLECTOR | O32: 0
B33: CALIF SEC OF STATE | O33: 0
O34: 0
A35: PROPERTY TAX | B35: ROOKS COUNTY | O35: 0
A36: DONATIONS | O36: 0
B37: OR. CO. POLICE DEPT | O37: 0
B38: SETTLEMENT PAYMENT | O38: 0
B39: ALSA DONATION | E39: 500 | O39: 500
O40: 0
A41: MANAGEMENT EXPENSE | C41: 13124 | D41: 11719 | E41: 10189 | F41: 10369 | G41: 12157 | O41: 57558
O42: =SUM(C42:N42) -> 0
B43: TOTAL | O43: 0
B44: ACTUAL MONTHLY EXPENSES | C44: =SUM(C3:C42) -> 18822 | D44: =SUM(D3:D42) -> 44719 | E44: 22039 | F44: 26125 | G44: 20749 | H44: 0 | I44: 0 | J44: =SUM(J3:J42) -> 0 | K44: 0 | L44: 0 | M44: 0 | N44: 0 | O44: 132454
B45: PROJECTED MONTHLY EXPENSES | C45: 33000 | D45: 33000 | E45: 33000 | F45: 33000 | G45: 33000 | H45: 33000 | I45: 33000 | J45: 33000 | K45: 33000 | L45: 33000 | M45: 33000 | N45: 33000 | O45: 396000
B46: ACCUMULATIVE DIFFERENCE | C46: =SUM(C44-C45) -> -14178 | D46: =SUM(D44+C46-D45) -> -2459 | E46: =SUM(E44+D46-E45) -> -13420 | F46: -20295 | G46: -32546 | H46: -65546 | I46: -98546 | J46: -131546 | K46: -164546 | L46: -197546 | M46: =SUM(M44+L46-M45) -> -230546 | N46: -263546
A48: 100% INCOME 55,320. PER MONTH | B48: ACTUAL MONTHLY INCOME | C48: 67240 | D48: 51599 | E48: 52825 | F48: 50756 | G48: 48115
B49: 95% of PROJECTED MONTHLY INCOME | C49: 52554 | D49: 52554 | E49: 52554 | F49: 52554 | G49: 52554 | H49: 52554 | I49: 52554 | J49: 52554 | K49: 52554 | L49: 52554 | M49: 52554 | N49: 52554 | O49: =SUM(C49:N49) -> 630648
B50: ACCUMULATIVE TOTAL INCOME ABOVE 95% | C50: =SUM(C48-C49) -> 14686 | D50: =SUM(D48+C50-D49) -> 13731 | E50: =SUM(E48+D50-E49) -> 14002 | F50: 12204 | G50: 7765 | H50: -44789 | I50: -97343 | J50: -149897 | K50: -202451 | L50: -255005 | M50: =SUM(M48+L50-M49) -> -307559 | N50: -360113
B51: TRUE PROJECTED INCOME 90% | C51: 40090.5 | D51: 40090.5 | E51: 40090.5 | F51: 40090.5 | G51: 40090.5 | H51: 40090.5 | I51: 40090.5 | J51: 40090.5 | K51: 40090.5 | L51: 40090.5 | M51: 40090.5 | N51: 40090.5 | O51: =SUM(C51:N51) -> 481086
C53: =SUM(C48-C44) -> 48418 | D53: =SUM(D48-D44) -> 6880 | E53: 30786 | F53: 24631 | G53: 27366 | H53: 0 | I53: 0 | J53: 0 | K53: 0 | L53: 0 | M53: =SUM(M48-M44) -> 0 | N53: 0 | O53: =SUM(C53:N53) -> 138081
O54: -
A55: PARTNERS | B55: DISBURSEMENT | C55: JAN | D55: FEB | E55: MAR | F55: APRIL | G55: MAY | H55: JUNE | I55: JULY | J55: AUG | K55: SEPT | L55: OCT | M55: NOV | N55: DEC | O55: -
A56: 0.2 | B56: JUDY NELSON | D56: 10000 | O56: =SUM(D56:N56) -> 10000
A57: 0.2 | B57: CINDY GICK | D57: 10000 | O57: 10000
A58: 0.2 | B58: PETER GICK | D58: 10000 | O58: 10000
A59: 0.2119 | B59: BOB GICK | D59: 10595 | O59: 10595
A60: 0.047 | B60: LAUREN SHERWIN | D60: 2351.25 | O60: 2351.25
A61: 0.047 | B61: ANDREW GICK | D61: 2351.25 | O61: 2351.25
A62: 0.047 | B62: SHANE GICK | D62: 2351.25 | O62: 2351.25
A63: 0.047 | B63: KRISTIN MECKALAVAGE | D63: 2351.25 | O63: 2351.25
A64: 1 | B64: TOTAL | D64: 50000 | F64: 50000 | O64: 100000
E66: SEPARATE INCOME FROM RENTS
A67: 98293.22 | B67: IN BANK TODAY 4-30-2026 | E67: 56.92 | F67: CITATION
A68: 15435 | B68: CHECKS FOR DEPOSIT | F68: CITATION
A69: 5047 | B69: CASH ON HAND | F69: CITATION
A70: =SUM(A67:A69) -> 118775.22 | B70: TOTAL MONEY ON HAND | F70: CITATION
F71: CITATION
E72: =SUM(E67:E71) -> 56.92 | F72: TOTAL FOR YEAR
A74: OTHER INFORMATION AS OF 6/2/2026
A75: 5 VACANT OFFICES 7.5% OF INCOME
A76: PAST DUE 16,630.00 is still coming
A78: OTHER INFORMATION AS OF 4/30/2026
A79: 4 VACANT OFFICES 5% OF INCOME
A80: PAST DUE 9,420.00 is still coming
A82: OTHER INFORMATION AS OF 3/30/2026
A83: 4 VACANT OFFICES 7% OF INCOME, RENTED 1 ROOM
A84: PAST DUE 12,040.00 is still coming
A86: OTHER INFORMATION AS OF 2/28/2026
A87: 5 VACANT OFFICES 8% OF INCOME, HAVE RENTED 1 ROOMS, LOST 1
A88: PAST DUE 5,210.00 is still coming
A90: OTHER INFORMATION AS OF 1/31/2026
A91: 5 VACANT OFFICES 8% OF INCOME, HAVE RENTED 4 ROOMS
A92: PAST DUE 4,780.00 is still coming
A94: OTHER INFORMATION AS OF 12/31/2025
A95: 9 VACANT OFFICES 14% OF INCOME, HAVE RENTED 2 ROOMS IN DEC, LOST 1 TENANT
A96: PAST DUE 8,760.00 is still coming

Sheet Sheet2

Sheet Sheet3
